Workbook

Sheet Sheet1
B2: Estimate of the Solar Operated Drinking Water Project of ONE Village, Block- Gogunda, District-Udaipur
B3: Unit Cost
B5: Sr. No. | C5: Budget Head | D5: Volume | E5: Rate (Rs) | F5: Total Cost | G5: Local Contribution | H5: Total Grant Required | I5: Amount in US$
D6: (cum)/ | F6: (Rs) | G6: (Rs) | H6: (Rs)
D7: Unit no.
B8: 1 | C8: 2 | D8: 3 | E8: 4 | F8: 5 | G8: 6 | H8: 7
B9: 1 | C9: Drilling of New bore well | D9: 300 ft. | E9: 75 | F9: 22500
B10: 2 | C10: Kasing pipe | D10: 20 ft | E10: 200 | F10: =+E10*20 -> 4000
C11: Sub total | F11: =+F9+F10 -> 26500 | G11: =+F11*0.15 -> 3975 | H11: =+F11-G11 -> 22525 | I11: =+H11/58 -> 388.362069
B12: 2 | C12: Solar Submersible Pump SQF 5A suitable for 35 meters total head and water discharge for 40,000 LPD | D12: 1 | E12: 96750 | F12: 96750
C13: 1380 W Solar Panels along with mounting structure | D13: 1 set | E13: 89700 | F13: 89700
C14: Rotary Switch | D14: 1 | E14: 1200 | F14: 1200
C15: 40 mm HDPE Riser Pipe – 40 meter | D15: 1 | E15: 2500 | F15: 2500
C16: 3 core 2.5 sq.mm Power Cable –60 mtr | D16: 1 | E16: 3800 | F16: 3800
C17: Necessary fittings | D17: 1 | E17: 5500 | F17: 5500
C18: Transportation | D18: 1 | E18: 25000 | F18: 25000
C19: Installation | D19: 1 | E19: 25000 | F19: 25000
C20: Sub total | F20: =SUM(F12:F19) -> 249450 | G20: =+F20*0.15 -> 37417.5 | H20: =+F20-G20 -> 212032.5 | I20: =+H20/58 -> 3655.732759
B21: 3 | C21: Construction of Water Storage Tank | D21: 8000 liters capacity | F21: 80000 | G21: 12000 | H21: =+F21-G21 -> 68000
C22: Supervision | F22: 3000 | G22: 450 | H22: =+F22-G22 -> 2550
C23: Sub Total (1 to 3) | F23: =+F11+F20+F21+F22 -> 358950 | G23: =+G11+G20+G21+G22 -> 53842.5 | H23: =+F23-G23 -> 305107.5 | I23: =+H23/58 -> 5260.474138
B24: 4 | C24: Contingencies | D24: 0.1 | F24: =+F23*0.1 -> 35895 | G24: =+F24*0.15 -> 5384.25 | H24: =+H23*0.1 -> 30510.75
C25: Training | D25: 2 Nos. | E25: 5000 | F25: 10000 | H25: 10000
C26: Sub-Total | F26: =+F24+F25 -> 45895 | G26: =+G24+G25 -> 5384.25 | H26: =+H24+H25 -> 40510.75
C27: Sub Total (1 to 4) | F27: =+F23+F26 -> 404845 | G27: =+G23+G26 -> 59226.75 | H27: =+H23+H26 -> 345618.25 | I27: =+H27/58 -> 5958.935345
B28: 5 | C28: Management Cost @ 20% | F28: =+F27*0.2 -> 80969 | G28: 0 | H28: =+F28 -> 80969 | I28: =+H28/58 -> 1396.017241
C29: Grand Total | F29: =+F27+F28 -> 485814 | G29: =+G27+G28 -> 59226.75 | H29: =+H27+H28 -> 426587.25 | I29: =+H29/58 -> 7354.952586
C31: Cost for one Unit in Rupees | F31: =+F29 -> 485814 | G31: =+G29 -> 59226.75 | H31: 426587.25 | I31: 7354.952586
C32: Cost for Four Unit in Rupees | F32: =+F31*4 -> 1943256 | G32: =+G31*4 -> 236907 | H32: 1706349 | I32: 29419.81034
C33: Total cost for four units in Dollar | F33: =+F32/58 -> 33504.41379 | G33: =+G32/58 -> 4084.603448 | H33: 29419.81034

Sheet Sheet2

Sheet Sheet3
